[Event "Sardinia World Festival-A 2024"]
[Site "Orosei"]
[Date "2024.04.29"]
[Round "3.33"]
[White "Costa, Leonardo"]
[Black "Kurmangaliyeva, Liya"]
[Result "1-0"]
[ECO "C54"]
[WhiteElo "2476"]
[BlackElo "2230"]
[Annotator "TA"]
[PlyCount "81"]
[EventDate "2024.04.26"]
[EventType "swiss"]
[EventCountry "ITA"]
[SourceTitle "playchess.com"]
[Source "ChessBase"]
[SourceQuality "1"]
[TimeControl "40/5400+30:1800+30"]

{[%evp 9,81,10,17,8,14,9,16,10,8,0,0,0,0,-7,0,0,0,0,0,0,0,0,0,0,30,22,91,6,123,81,100,108,132,88,93,40,32,0,26,9,0,0,16,6,0,0,0,0,20,11,24,17,20,12,16,14,390,390,383,385,370,369,1011,999,5414,5410,29987,29988,29990,29991,29991,29992,29992,29993]} 1. e4 {[%emt 0:00:02]} e5 {[%emt 0:00:22]} 2. Nf3 {[%emt 0:00:05]} Nc6 {[%emt 0:00:13]} 3. Bc4 {[%emt 0:00:03]} Bc5 {[%emt 0:00:37]} 4. c3 {[%emt 0:00:04]} Nf6 {[%emt 0:00:15]} 5. d3 {[%emt 0:00:03]} a5 {[%emt 0:00:42]} 6. O-O {[%emt 0:00:17] Black should prevent d4.} d6 {[%emt 0:00:35]} 7. Re1 {[%emt 0:00:41]} O-O {[%emt 0:01:35]} 8. h3 {[%emt 0:00:02] The position is equal.} h6 {[%emt 0:00:48]} 9. d4 {[%emt 0:01:00]} Ba7 {[%emt 0:05:27][%cal Of6e4]} 10. Bb3 {[%emt 0:00:05]} Re8 {[%emt 0:00:57]} 11. Bc2 {[%emt 0:00:04]} exd4 {[%emt 0:01:35]} 12. cxd4 {[%emt 0:00:05]} Nb4 {[%emt 0:00:05]} 13. Nc3 {[%emt 0:00:04]} Nxc2 {[%emt 0:00:22]} 14. Qxc2 {[%emt 0:00:04]} c6 {[%emt 0:06:32]} 15. a3 {[%emt 0:06:08]} Bd7 {[%emt 0:07:09]} 16. Bf4 {[%emt 0:17:24]} Nh5 {[%emt 0:20:59]} 17. Bh2 {[%emt 0:10:17][%cal Oa1d1]} Qc8 {[%emt 0:02:19]} (17... Nf6 $11 {remains equal.}) 18. Kh1 {[%emt 0:10:46] White is more active.} (18. Qd3 $16) 18... c5 {[%emt 0:16:02]} (18... Nf6 $1 $11) 19. Rad1 {[%emt 0:07:22]} (19. Bxd6 $2 cxd4 20. Nxd4 Bxd4 $19) 19... cxd4 {[%emt 0:07:56]} 20. Nxd4 {[%emt 0:00:05]} Qc5 {[%emt 0:05:14]} 21. Re2 {[%emt 0:06:31][%cal Be1e2,Be2d2,Bd2d4][%mdl 32]} Nf6 {[%emt 0:01:45]} 22. Nb3 {[%emt 0:04:08] A dynamic duo of knights.} (22. f3 $16) 22... Qh5 $14 {[%emt 0:02:38]} 23. Rxd6 {[%emt 0:08:34]} (23. Bxd6 Rac8 $11) 23... a4 {[%emt 0:04:11]} 24. Nd4 {[%emt 0:04:30] Threatening Rd2.} Bc5 {[%emt 0:02:10]} 25. Rxf6 {[%emt 0:01:16]} gxf6 {[%emt 0:02:32]} 26. Rd2 {[%emt 0:02:12] Nd5 would now be deadly.} Bxd4 {[%emt 0:02:31]} 27. Rxd4 {[%emt 0:00:05]} Bc6 {[%emt 0:00:04]} 28. Qd2 {[%emt 0:01:36]} Qg6 {[%emt 0:00:23][%cal Rc6e4]} 29. f3 $36 {[%emt 0:08:05][%mdl 2048] Black is under pressure.} Kh7 {[%emt 0:00:05]} 30. Bf4 {[%emt 0:01:06][%cal Bh2f4,Bf4h6,Bh6g5,Bg5f6,Bf6c3][%mdl 32]} f5 {[%emt 0:04:06]} 31. exf5 {[%emt 0:01:30]} Qxf5 {[%emt 0:00:22]} 32. Bxh6 {[%emt 0:00:20] [#] Black must now prevent Be3.} Bxf3 $2 {[%emt 0:01:58][%mdl 8192] A mistake that costs the game.} 33. Rh4 $18 {[%emt 0:05:59][%cal Oh6g7] Bg7+! would kill now.} Bh5 {[%emt 0:02:16]} 34. Bg5 {[%emt 0:01:28] Dodges Rad8} Kg6 {[%emt 0:00:15][%cal Bh7g6,Bg6f7,Bf7g8][%mdl 32]} 35. Nd5 {[%emt 0:00:03]} ({And not} 35. Rxh5 Qf1+ 36. Kh2 Kxh5 $11) 35... f6 $2 {[%emt 0:01:35] [#]} (35... Qxg5 36. Nf4+ Kh6 (36... Kh7 $2 37. Rxh5+ $18)) 36. Bxf6 {[%emt 0:02:08]} Kf7 {[%emt 0:00:55]} 37. Rf4 {[%emt 0:01:48]} Qb1+ {[%emt 0:00:05]} 38. Kh2 {[%emt 0:00:02] White mates.} Ra6 {[%emt 0:01:18]} 39. Bc3+ {[%emt 0:01:06]} Kg8 {[%emt 0:00:16]} 40. Nf6+ {[%emt 0:01:50]} Rxf6 {[%emt 0:00:06]} 41. Rxf6 {[%emt 0:30:03] Weighted Error Value: White=0.09 (flawless) /Black=0.40.  Loses game:     	---       	Black=1      Mistake:       	White=2     	Black=3      Inaccurate:     	White=3     	Black=3      OK:         	White=13    	Black=13     Best:        	White=2     	Black=4} 1-0

[Event "Sardinia World Festival-A 2024"]
[Site "Orosei"]
[Date "2024.04.29"]
[Round "3.34"]
[White "Carnicelli, Valerio"]
[Black "Maldonado Gonzales, Stefano"]
[Result "1/2-1/2"]
[ECO "C79"]
[WhiteElo "2413"]
[BlackElo "2218"]
[Annotator "TA"]
[PlyCount "79"]
[EventDate "2024.04.26"]
[EventType "swiss"]
[EventCountry "ITA"]
[SourceTitle "playchess.com"]
[Source "ChessBase"]
[SourceQuality "1"]
[TimeControl "40/5400+30:1800+30"]

{[%evp 15,79,35,39,20,22,32,49,50,75,41,58,65,76,92,129,101,90,22,18,25,27,20,29,31,18,-3,-7,-56,52,48,28,34,41,0,0,0,0,2,0,-53,-52,-43,-47,-44,-38,-46,-40,-66,-12,-33,-41,-71,-39,-50,-18,-47,-18,-200,-88,-119,-109,-209,-137,-152,-98,-98]} 1. e4 {[%emt 0:00:26]} e5 {[%emt 0:00:02]} 2. Nf3 {[%emt 0:00:07]} Nc6 {[%emt 0:00:02]} 3. Bb5 {[%emt 0:00:07]} a6 {[%emt 0:00:04]} 4. Ba4 {[%emt 0:00:05]} Nf6 {[%emt 0:00:05]} 5. O-O {[%emt 0:00:07]} d6 {[%emt 0:00:04]} 6. c3 {[%emt 0:00:35]} Bd7 {[%emt 0:00:53]} 7. Re1 {[%emt 0:00:19]} g6 {[%emt 0:00:04]} 8. d4 {[%emt 0:00:20]} Bg7 {[%emt 0:00:03]} 9. h3 {[%emt 0:00:11]} O-O {[%emt 0:00:08]} 10. Bc2 {[%emt 0:00:11]} Nh5 {[%emt 0:04:00]} 11. a4 {[%emt 0:00:24][%cal Ba2a4,Ba4b5][%mdl 32] White is slightly better.} Qe8 {[%emt 0:06:50]} 12. Na3 {[%emt 0:01:11]} Kh8 {[%emt 0:08:41]} 13. Nc4 $1 {[%emt 0:02:23]} b5 {[%emt 0:03:05]} 14. Ne3 {[%emt 0:01:50]} Ne7 {[%emt 0:03:35]} 15. axb5 {[%emt 0:03:06]} exd4 {[%emt 0:02:24]} 16. Nd5 {[%emt 0:07:09]} ({Better is} 16. cxd4 $16 axb5 17. Rxa8 Qxa8 18. Bb3) 16... Nxd5 $11 {[%emt 0:07:28]} 17. exd5 {[%emt 0:00:14]} Qc8 {[%emt 0:00:07]} 18. Nxd4 {[%emt 0:09:04] next Re7 is good for White.} axb5 {[%emt 0:00:08]} 19. Rxa8 {[%emt 0:04:25]} (19. Bd2 {simplifies} Rxa1 20. Qxa1 Nf6 21. Bb3) 19... Qxa8 {[%emt 0:00:05]} 20. Qd3 {[%emt 0:17:15]} (20. Bb3 {simplifies} Re8 21. Rxe8+ Qxe8 22. Nc6) 20... Qxd5 {[%emt 0:19:25]} 21. Re7 {[%emt 0:04:50]} (21. Bb3 $11 {feels stronger.} Qa8 22. Nxb5) 21... Bc6 {[%emt 0:15:45]} (21... Re8 $1 $15 22. Rxe8+ (22. Rxd7 $2 Re1+ $19) (22. Bb3 Qa8 $17) 22... Bxe8) 22. Nxc6 $14 {[%emt 0:00:46]} Qxc6 {[%emt 0:00:12]} 23. Bb3 {[%emt 0:04:05]} b4 $1 {[%emt 0:08:04]} 24. Bd2 {[%emt 0:09:02]} (24. Rxf7 Rxf7 25. Bxf7 bxc3 $11) 24... bxc3 {[%emt 0:00:30]} 25. bxc3 {[%emt 0:00:14]} Kg8 {[%emt 0:01:59]} 26. Bd5 {[%emt 0:02:38] This pair of bishops is nice.} Qa4 {[%emt 0:02:37]} 27. Rxc7 {[%emt 0:05:58]} (27. Bf3 $11) 27... Qd1+ $1 $15 {[%emt 0:02:39]} 28. Kh2 {[%emt 0:02:45]} Nf4 {[%emt 0:05:16][%cal Bh5f4,Bf4d3,Bd3f2,Bf2e4][%mdl 32]} ({Wrong is} 28... Bh6 $2 29. Bxf7+ (29. g4 Bxd2 30. Qc4 Qe1 $11) 29... Kh8 (29... Rxf7 $2 {perishes.} 30. Bxh6 Rxc7 31. Qxd1 $18) 30. Qd4+ Bg7 31. Qxd6 $18) 29. Bf3 {[%emt 0:01:31][%cal Bd5f3,Bf3d1,Bd1c2][%mdl 32]} Nxd3 {[%emt 0:00:15]} 30. Bxd1 {[%emt 0:00:04]} Nxf2 {[%emt 0:00:11]} 31. Bc2 {[%emt 0:03:55] [#] Hoping for Kg1.} f5 {[%emt 0:03:52]} (31... Ne4 $15 32. Bf4 (32. Bxe4 d5 $17) 32... Nxc3 33. Bxd6 Rd8) 32. Kg1 {[%emt 0:01:37]} Ne4 {[%emt 0:00:14]} 33. Be1 {[%emt 0:00:04]} Rb8 {[%emt 0:02:40]} 34. Kf1 {[%emt 0:03:43]} h5 {[%emt 0:01:06]} 35. Ke2 {[%emt 0:00:25]} Be5 {[%emt 0:01:30]} 36. Kd3 $2 {[%emt 0:05:04] [#]} (36. Bxe4 $11 fxe4 37. Ke3) 36... d5 {[%emt 0:01:35]} (36... Rb2 $19 {and Black stays clearly on top. White must now prevent ...Bf4.} 37. Rc4 Bf4) 37. Rc6 {[%emt 0:01:18]} Kf7 {[%emt 0:00:13]} 38. h4 {[%emt 0:00:40]} (38. Ke2 $17) 38... Rb5 {[%emt 0:01:32]} 39. Rc8 {[%emt 0:01:46]} Rc5 {[%emt 0:00:47]} (39... Rb2 $142 40. Ra8 Rb6) 40. Rxc5 {[%emt 0:00:34] Weighted Error Value: White=0.28 (precise) /Black=0.22 (precise) .  Loses game:     	White=1     	---        Mistake:       	White=4     	Black=4      Inaccurate:     	White=6     	Black=5      OK:         	White=7     	Black=11     Best:        	White=3     	Black=3      Strong:       	White=1     	Black=2} 1/2-1/2

[Event "Sardinia World Festival-A 2024"]
[Site "Orosei"]
[Date "2024.04.29"]
[Round "3.35"]
[White "Kairbekova, Amina"]
[Black "Lumachi, Gabriele"]
[Result "1/2-1/2"]
[ECO "B03"]
[WhiteElo "2204"]
[BlackElo "2413"]
[Annotator "TA"]
[PlyCount "136"]
[EventDate "2024.04.26"]
[EventType "swiss"]
[EventCountry "ITA"]
[SourceTitle "playchess.com"]
[Source "ChessBase"]
[SourceQuality "1"]
[TimeControl "40/5400+30:1800+30"]

{[%evp 19,136,32,49,22,26,17,24,0,34,33,37,35,52,63,53,58,81,54,63,17,19,21,11,0,12,0,0,0,0,0,0,0,0,0,0,0,0,0,0,0,0,0,0,0,0,0,0,-19,0,-19,-19,-19,-19,-19,-19,-19,-19,-19,-19,-19,-19,-19,-19,-42,-42,-42,-42,-42,-42,-42,-42,-42,-42,-42,-42,-42,-42,-42,-42,-42,-42,-42,-42,-195,-186,-431,-411,-406,-345,-313,0,-380,0,-292,-291,-246,-156,-154,-142,-238,0,-41,-36,-56,0,0,0,0,0,0,0,0,0,0,0,0,0,0,0]} 1. e4 {[%emt 0:00:02]} Nf6 {[%emt 0:00:06]} 2. e5 {[%emt 0:00:05]} Nd5 {[%emt 0:00:03]} 3. d4 {[%emt 0:00:06]} d6 {[%emt 0:00:05]} 4. c4 {[%emt 0:00:06]} Nb6 {[%emt 0:00:26]} 5. f4 {[%emt 0:00:11]} dxe5 {[%emt 0:02:01]} 6. fxe5 {[%emt 0:00:07]} Bf5 {[%emt 0:00:52]} 7. Nc3 {[%emt 0:01:03]} e6 {[%emt 0:00:07]} 8. Be3 {[%emt 0:00:39]} Nc6 {[%emt 0:02:07]} 9. Nf3 {[%emt 0:00:14]} Be7 {[%emt 0:00:04]} 10. Be2 {[%emt 0:00:11]} f6 {[%emt 0:00:08] B03: Alekhine's Defence: Four Pawns Attack.} 11. exf6 {[%emt 0:00:54]} Bxf6 {[%emt 0:00:05]} 12. O-O {[%emt 0:02:24]} Qe7 {[%emt 0:00:02]} 13. Kh1 {[%emt 0:12:12]} O-O {[%emt 0:03:02]} 14. Qd2 {[%emt 0:02:49]} Rad8 {[%emt 0:02:03]} 15. Rad1 {[%emt 0:01:19]} Kh8 {[%emt 0:00:58]} 16. h3 {[%emt 0:02:05]} Bg6 {[%emt 0:04:00]} 17. Qc1 {[%emt 0:10:18]} a5 {[%emt 0:09:50]} 18. a3 $146 {[%emt 0:12:50]} ({Predecessor:} 18. Rfe1 Qf7 19. b3 Rd7 20. Rf1 Qe7 21. a3 Rfd8 22. Nb5 Nc8 23. Ng5 h6 24. Nxe6 Qxe6 {½-½ Abudureheman,N (2008)-Pham,L (2373) Belt and Road Hunan op-B 2019 (7)}) 18... a4 {[%emt 0:05:36]} 19. d5 {[%emt 0:05:40]} (19. Nb5 $14 {is more appropriate.}) 19... exd5 $11 {[%emt 0:11:46]} 20. cxd5 {[%emt 0:07:59]} Na5 $1 {[%emt 0:01:22]} 21. Bxb6 {[%emt 0:04:57]} cxb6 {[%emt 0:02:32]} 22. Rde1 {[%emt 0:00:05]} Nb3 {[%emt 0:08:02]} 23. Qd1 {[%emt 0:00:25]} Bxc3 {[%emt 0:22:30]} 24. bxc3 {[%emt 0:00:05]} Qxa3 {[%emt 0:00:25]} 25. Ne5 {[%emt 0:00:04]} Qd6 {[%emt 0:01:15]} 26. Nxg6+ {[%emt 0:13:25]} hxg6 {[%emt 0:02:06]} 27. Rxf8+ {[%emt 0:06:10]} Rxf8 {[%emt 0:01:02]} 28. Bb5 {[%emt 0:00:11]} Nc5 {[%emt 0:08:24]} 29. Bxa4 {[%emt 0:00:37]} Nxa4 {[%emt 0:00:48]} 30. Qxa4 {[%emt 0:00:12]} Qxd5 {[%emt 0:00:28]} 31. Re8 {[%emt 0:03:48]} Rxe8 {[%emt 0:01:37]} 32. Qxe8+ {[%emt 0:00:08]} Kh7 {[%emt 0:00:04]} 33. Qe1 {[%emt 0:02:01]} b5 {[%emt 0:01:56]} 34. Kh2 {[%emt 0:08:21]} Qc4 {[%emt 0:00:41]} 35. h4 {[%emt 0:01:07]} Qc5 {[%emt 0:03:01]} 36. g3 {[%emt 0:00:29]} Qd5 {[%emt 0:00:46]} 37. Kh3 {[%emt 0:00:57]} Qf3 {[%emt 0:03:33]} 38. Kh2 $1 {[%emt 0:00:18]} Qc6 {[%emt 0:00:08]} 39. Qe3 {[%emt 0:03:37]} Qd5 {[%emt 0:01:12]} 40. Qe1 {[%emt 0:00:07]} Qa2+ {[%emt 0:00:38]} 41. Kh3 {[%emt 0:30:37]} Qc2 {[%emt 0:31:20]} 42. g4 {[%emt 0:00:00]} Qd3+ {[%emt 0:00:00]} 43. Kh2 {[%emt 0:00:00]} Qd7 {[%emt 0:00:00]} 44. Kg3 {[%emt 0:00:00]} Kg8 {[%emt 0:00:00]} 45. Kh3 {[%emt 0:00:00]} Qc6 {[%emt 0:00:00]} 46. Kg3 {[%emt 0:00:00]} Qc7+ {[%emt 0:00:00]} 47. Kg2 {[%emt 0:00:00]} Qf4 {[%emt 0:00:00]} 48. g5 $1 {[%emt 0:00:00]} Kf7 {[%emt 0:00:06]} 49. Kh3 {[%emt 0:00:00]} Qf3+ {[%emt 0:00:36]} 50. Kh2 {[%emt 0:00:00]} Qg4 {[%emt 0:00:31]} 51. Qf1+ $2 {[%emt 0:00:00] [#]} ({Only move:} 51. Kh1 $1 $15) 51... Ke6 $1 $19 {[%emt 0:01:20]} 52. Qf2 $2 {[%emt 0:00:35]} (52. Qxb5 {was the only defense.} Qxh4+ 53. Kg1 Qg4+ 54. Kh2 Qf4+ (54... Qh4+ $2 55. Kg1 $19) 55. Kg1) 52... Qe4 $19 {[%emt 0:01:46]} 53. Kg1 {[%emt 0:01:44]} Qb1+ {[%emt 0:01:14]} 54. Kg2 {[%emt 0:00:46]} Qe4+ {[%emt 0:00:08]} 55. Kg1 {[%emt 0:00:05]} Qb1+ {[%emt 0:02:49]} 56. Kg2 $1 {[%emt 0:00:12]} Qd3 {[%emt 0:00:11]} ({Don't take} 56... Qe4+ 57. Kh2) 57. Qb6+ {[%emt 0:03:49]} Qd6 {[%emt 0:00:05]} 58. Qe3+ {[%emt 0:00:39] [#]} Qe5 $1 {[%emt 0:00:44]} 59. Qb6+ {[%emt 0:01:21]} (59. Qh3+ $17 Kd6 60. Qc8) 59... Qd6 $2 {[%emt 0:00:04]} ({Better is} 59... Kf5 $19 60. Kf2 Qh2+ (60... Qxc3 61. Qxb5+ Kg4 62. Qxb7 $17) 61. Ke1 Qxh4+ 62. Kd1 Qc4 (62... Kxg5 63. Qxb5+ Kh6 64. Qxb7 $11)) 60. Qe3+ $1 $15 {[%emt 0:00:04]} Kd7 {[%emt 0:00:09]} 61. Kf1 {[%emt 0:01:20]} Kc6 {[%emt 0:01:46]} ({Black should play} 61... Qd1+ $15 62. Kf2 Qh1) 62. Qe4+ $11 {[%emt 0:00:19]} Kb6 {[%emt 0:00:12]} 63. Ke2 {[%emt 0:01:03]} Ka6 {[%emt 0:03:08]} 64. Qe8 {[%emt 0:00:25]} Kb6 {[%emt 0:00:00]} 65. Qf7 {[%emt 0:00:17]} Qh2+ {[%emt 0:00:25]} 66. Kd3 {[%emt 0:00:28]} Qh3+ {[%emt 0:00:18]} 67. Kc2 {[%emt 0:00:43]} Qh2+ {[%emt 0:00:36]} ({But not} 67... Qf5+ $2 68. Qxf5 gxf5 69. h5 $18) 68. Kb3 {[%emt 0:00:25]} Qd6 {[%emt 0:00:35]} 1/2-1/2

[Event "Sardinia World Festival-A 2024"]
[Site "Orosei"]
[Date "2024.04.29"]
[Round "3.36"]
[White "Atanasov, Anthony"]
[Black "Lacan Rus, David"]
[Result "1-0"]
[ECO "E60"]
[WhiteElo "2407"]
[BlackElo "2214"]
[Annotator "TA"]
[PlyCount "93"]
[EventDate "2024.04.26"]
[EventType "swiss"]
[EventCountry "ITA"]
[SourceTitle "playchess.com"]
[Source "ChessBase"]
[SourceQuality "1"]
[TimeControl "40/5400+30:1800+30"]

{[%evp 9,93,20,12,20,42,32,45,43,51,64,54,72,85,0,67,0,50,43,38,43,50,52,60,53,43,52,45,37,42,50,52,52,45,31,24,14,23,25,49,47,85,69,100,98,102,49,97,75,132,59,43,28,52,6,12,0,0,16,72,8,337,241,224,178,167,153,191,195,339,324,281,225,1273,377,1312,331,340,382,349,379,372,367,486,485,29986,29986]} 1. d4 {[%emt 0:00:02]} Nf6 {[%emt 0:00:44]} 2. c4 {[%emt 0:00:12]} g6 {[%emt 0:00:14]} 3. h4 {[%emt 0:00:23]} Bg7 {[%emt 0:02:29]} 4. Nc3 {[%emt 0:00:12]} d5 {[%emt 0:00:59]} 5. h5 {[%emt 0:00:11]} Nxh5 {[%emt 0:05:15]} 6. cxd5 {[%emt 0:00:13]} (6. Nxd5 c6 7. Nc3 Qxd4 (7... Bxd4 8. Qc2 $17) 8. Qxd4 Bxd4 $17) 6... c6 {[%emt 0:06:07][%cal Bc7c6,Bc6d5][%mdl 32]} 7. e4 {[%emt 0:00:19][%cal Be2e4,Be4e5][%mdl 32]} cxd5 {[%emt 0:05:04]} 8. e5 {[%emt 0:00:12] Black must now prevent g4. White is slightly better.} (8. exd5 Nf6 $15) (8. Nxd5 Nc6 $11) 8... Bf8 {[%emt 0:15:08]} 9. Nf3 {[%emt 0:00:44]} Nc6 {[%emt 0:02:52]} 10. Qb3 {[%emt 0:01:18]} Ng7 {[%emt 0:10:55]} 11. Bg5 {[%emt 0:28:42]} (11. Nxd5 Nf5 $11) (11. Qxd5 $16 Bg4 12. Ng5) 11... Ne6 {[%emt 0:10:41]} (11... Rb8 $11) 12. Nxd5 {[%emt 0:09:57] White has more active pieces. The black rooks are passive.} (12. Qxd5 $14 Qxd5 13. Nxd5) 12... Bg7 {[%emt 0:03:07]} ({Black should play} 12... a6 $11) 13. Be3 {[%emt 0:23:13]} O-O {[%emt 0:02:32]} 14. Rd1 {[%emt 0:03:50]} Na5 {[%emt 0:13:23]} 15. Qb5 {[%emt 0:03:12]} b6 {[%emt 0:02:21]} (15... a6 $2 16. Nxe7+ Qxe7 17. Qxa5 $18) 16. Nc3 {[%emt 0:01:18]} Nc7 {[%emt 0:02:44]} 17. Qd3 {[%emt 0:02:30]} Nd5 $1 {[%emt 0:05:48]} 18. Qd2 {[%emt 0:08:19]} Nxe3 {[%emt 0:02:29]} 19. Qxe3 {[%emt 0:01:29]} Bg4 {[%emt 0:00:45]} 20. Be2 $36 {[%emt 0:00:04][%mdl 2048] White has good play.} Rc8 {[%emt 0:01:21]} 21. Ng5 {[%emt 0:02:24]} Bxe2 {[%emt 0:00:47]} 22. Qxe2 {[%emt 0:00:07]} h6 {[%emt 0:00:33]} 23. Nf3 {[%emt 0:03:46]} Nc4 {[%emt 0:01:44]} 24. O-O {[%emt 0:00:30]} Qc7 {[%emt 0:02:05]} 25. Rc1 {[%emt 0:01:21] [#] Threatens to win with Nb1.} Qd7 {[%emt 0:00:46]} 26. b3 {[%emt 0:00:33]} Na5 {[%emt 0:00:33]} 27. Rfd1 {[%emt 0:02:19]} (27. d5 $16) 27... Rfd8 {[%emt 0:01:22]} (27... e6 $14 {should be considered.}) 28. d5 $16 {[%emt 0:00:43]} Qf5 {[%emt 0:00:18]} (28... Qg4 $142) 29. Rd4 {[%emt 0:01:24]} (29. b4 $16 Nc4 30. Nd4 Qxe5 31. Nc6 Qxe2 32. Nxe2) 29... Nb7 $14 {[%emt 0:00:22]} 30. b4 {[%emt 0:00:56]} Rc7 {[%emt 0:00:38]} 31. Qe3 {[%emt 0:02:27]} (31. Rdd1 $14) 31... Rdc8 $1 $11 {[%emt 0:00:31]} 32. Rdd1 {[%emt 0:01:17]} Rc4 {[%emt 0:00:43]} 33. a3 {[%emt 0:00:01]} h5 {[%emt 0:00:29] [#]} (33... Kh7 $11 {keeps the balance.}) 34. Nb5 {[%emt 0:01:21]} (34. Rd3 $1 $16) 34... a6 $2 {[%emt 0:00:52][%mdl 8192] A mistake that costs the game.} (34... Rxc1 $11 {and Black is okay.} 35. Rxc1 Rxc1+ 36. Qxc1 Bxe5) 35. Rxc4 {[%emt 0:00:24]} Rxc4 {[%emt 0:00:01]} 36. Nbd4 {[%emt 0:00:20]} (36. Qxb6 $6 axb5 37. Qxb7 Bxe5) 36... Qd7 {[%emt 0:00:38]} 37. Qe2 {[%emt 0:01:46]} Qxd5 {[%emt 0:00:39]} 38. Nf5 $1 {[%emt 0:00:01]} Qe4 {[%emt 0:00:53]} ({Not} 38... Qe6 $2 39. Nxe7+ (39. N3d4 Rxd4 40. Nxd4 Qxe5 $18) 39... Kf8 40. Nd5 $18) (38... Qb5 {was called for.} 39. N3d4 (39. Nxe7+ Kf8 $18) 39... Rxd4 40. Nxd4 Qxe2 41. Nxe2 Bxe5) 39. Nxe7+ $18 {[%emt 0:00:03] Excellent horsemanship.} Kf8 {[%emt 0:00:15]} 40. Qd2 {[%emt 0:01:55]} ({Don't do} 40. Qxe4 $6 Rxe4 41. Rd7 Nd8 $18) 40... Kxe7 $2 {[%emt 0:00:22]} (40... Qc2) 41. Qd7+ {[%emt 0:30:06]} Kf8 {[%emt 0:30:10][%cal Oe4c6]} 42. Nd2 $2 {[%emt 0:00:42]} (42. Ng5 {[%csl Gg5][%cal Rd7f7]} Qf5 43. e6) 42... Qg4 {[%emt 0:00:00]} 43. Nxc4 {[%emt 0:00:00]} (43. Qxb7 $2 {too greedy.} Qxd1+ 44. Nf1 Bxe5 $19) 43... Qxc4 {[%emt 0:00:00]} 44. Qxb7 {[%emt 0:00:00][%cal Rd1d8]} Bxe5 {[%emt 0:00:00]} 45. Qxb6 {[%emt 0:00:00]} Qf4 {[%emt 0:00:00]} 46. g3 {[%emt 0:00:00]} Qg4 {[%emt 0:00:00]} (46... Qc4 $18 47. Qc5+ Qxc5 48. bxc5 Ke7) 47. Qc5+ {[%emt 0:00:00] Weighted Error Value: White=0.27 (precise) /Black=0.45.  Loses game:     	---       	Black=1      Mistake:       	White=6     	Black=8      Inaccurate:     	---       	Black=4      OK:         	White=9     	Black=13     Best:        	White=7     	Black=2      Strong:       	White=1     	Black=2} 1-0